[Event "Titled Tuesday Blitz May 30 Early 2023"]
[White "Omariev, Maksim"]
[Black "De Souza, Cristiano Gomes"]
[WhiteFideId "4193423"]
[BlackFideId "2151758"]
[WhiteElo "2470"]
[BlackElo "2068"]
[Result "0-1"]
[Round "05"]
[TimeControl "180+2"]
[Date "2023.05.30"]
[WhiteClock "0:00:00"]
[BlackClock "0:00:47"]

1. g4 {[%clk 0:03:00]}  d5 {[%clk 0:02:56]} 2. Bg2 {[%clk 0:03:01]}  c6 {[%clk 0:02:55]} 3. h3 {[%clk 0:03:01]}  e5 {[%clk 0:02:55]} 4. d4 {[%clk 0:03:01]}  e4 {[%clk 0:02:55]} 5. c4 {[%clk 0:03:00]}  Be6 {[%clk 0:02:53]} 6. Nc3 {[%clk 0:03:00]}  Ne7 {[%clk 0:02:48]} 7. g5 {[%clk 0:02:46]}  Nf5 {[%clk 0:02:43]} 8. h4 {[%clk 0:02:42]}  Be7 {[%clk 0:02:40]} 9. Bf4 {[%clk 0:02:37]}  dxc4 {[%clk 0:02:31]} 10. e3 {[%clk 0:02:35]}  Nd6 {[%clk 0:02:24]} 11. Nge2 {[%clk 0:02:25]}  Bd5 {[%clk 0:02:18]} 12. Qc2 {[%clk 0:02:12]}  Qd7 {[%clk 0:02:11]} 13. O-O-O {[%clk 0:01:57]}  Na6 {[%clk 0:02:03]} 14. a3 {[%clk 0:01:57]}  b5 {[%clk 0:02:00]} 15. Nxe4 {[%clk 0:01:49]}  Nxe4 {[%clk 0:01:59]} 16. Bxe4 {[%clk 0:01:50]}  b4 {[%clk 0:01:54]} 17. Bf5 {[%clk 0:01:42]}  Qb7 {[%clk 0:01:50]} 18. e4 {[%clk 0:01:40]}  Be6 {[%clk 0:01:49]} 19. Bxe6 {[%clk 0:01:35]}  fxe6 {[%clk 0:01:49]} 20. a4 {[%clk 0:01:32]}  c5 {[%clk 0:01:42]} 21. Qxc4 {[%clk 0:01:11]}  cxd4 {[%clk 0:01:35]} 22. Qxe6 {[%clk 0:00:57]}  Nc5 {[%clk 0:01:34]} 23. Qd5 {[%clk 0:00:51]}  Qxd5 {[%clk 0:01:19]} 24. exd5 {[%clk 0:00:51]}  Rc8 {[%clk 0:01:19]} 25. Kb1 {[%clk 0:00:46]}  Kd7 {[%clk 0:01:19]} 26. Nxd4 {[%clk 0:00:27]}  Nxa4 {[%clk 0:01:14]} 27. d6 {[%clk 0:00:20]}  Bd8 {[%clk 0:01:12]} 28. Be5 {[%clk 0:00:06]}  Rf8 {[%clk 0:01:11]} 29. f4 {[%clk 0:00:07]}  g6 {[%clk 0:01:11]} 30. h5 {[%clk 0:00:06]}  Rf7 {[%clk 0:01:08]} 31. hxg6 {[%clk 0:00:04]}  hxg6 {[%clk 0:01:09]} 32. Rh8 {[%clk 0:00:03]}  Bb6 {[%clk 0:01:07]} 33. Rxc8 {[%clk 0:00:02]}  Kxc8 {[%clk 0:01:08]} 34. Ne6 {[%clk 0:00:02]}  Kd7 {[%clk 0:01:08]} 35. Ng7 {[%clk 0:00:02]}  Nc5 {[%clk 0:01:02]} 36. Bf6 {[%clk 0:00:02]}  a5 {[%clk 0:01:00]} 37. f5 {[%clk 0:00:03]}  gxf5 {[%clk 0:00:58]} 38. Nxf5 {[%clk 0:00:04]}  a4 {[%clk 0:00:57]} 39. Ne7 {[%clk 0:00:03]}  Ne4 {[%clk 0:00:54]} 40. Nd5 {[%clk 0:00:03]}  Bd8 {[%clk 0:00:49]} 41. g6 {[%clk 0:00:00]}  Rxf6 {[%clk 0:00:47]} 0-1


[Site "https://www.chess.com"]

[Event "Titled Tuesday Blitz May 30 Early 2023"]
[White "Erzhanov, Arman"]
[Black "Floresvillar Gonzalez, Luis Migu"]
[WhiteFideId "4138821"]
[BlackFideId "5100542"]
[WhiteElo "2138"]
[BlackElo "2040"]
[Result "1-0"]
[Round "05"]
[TimeControl "180+2"]
[Date "2023.05.30"]
[WhiteClock "0:00:59"]
[BlackClock "0:00:00"]

1. e4 {[%clk 0:02:59]}  d6 {[%clk 0:02:59]} 2. d4 {[%clk 0:02:58]}  Nf6 {[%clk 0:02:59]} 3. Nc3 {[%clk 0:02:58]}  g6 {[%clk 0:02:59]} 4. h3 {[%clk 0:02:59]}  Bg7 {[%clk 0:02:58]} 5. g4 {[%clk 0:02:59]}  h5 {[%clk 0:02:55]} 6. g5 {[%clk 0:02:59]}  Nfd7 {[%clk 0:02:55]} 7. Bg2 {[%clk 0:02:58]}  c6 {[%clk 0:02:54]} 8. a4 {[%clk 0:02:57]}  a5 {[%clk 0:02:47]} 9. Nge2 {[%clk 0:02:57]}  Na6 {[%clk 0:02:47]} 10. O-O {[%clk 0:02:57]}  Nb4 {[%clk 0:02:47]} 11. f4 {[%clk 0:02:55]}  b6 {[%clk 0:02:34]} 12. h4 {[%clk 0:02:43]}  Ba6 {[%clk 0:02:33]} 13. Rf2 {[%clk 0:02:40]}  Qc7 {[%clk 0:02:26]} 14. Ng3 {[%clk 0:02:38]}  c5 {[%clk 0:02:12]} 15. d5 {[%clk 0:02:36]}  Bd4 {[%clk 0:02:04]} 16. Nb1 {[%clk 0:02:27]}  Bb7 {[%clk 0:01:44]} 17. c3 {[%clk 0:02:24]}  Bxf2+ {[%clk 0:01:43]} 18. Kxf2 {[%clk 0:02:24]}  Na6 {[%clk 0:01:38]} 19. Na3 {[%clk 0:02:24]}  Qc8 {[%clk 0:01:31]} 20. Bh3 {[%clk 0:02:23]}  Nc7 {[%clk 0:01:29]} 21. c4 {[%clk 0:02:21]}  Ba6 {[%clk 0:01:27]} 22. b3 {[%clk 0:02:20]}  Qd8 {[%clk 0:01:21]} 23. Bb2 {[%clk 0:02:20]}  f6 {[%clk 0:01:11]} 24. Qd3 {[%clk 0:01:51]}  Rg8 {[%clk 0:00:42]} 25. Re1 {[%clk 0:01:43]}  Bc8 {[%clk 0:00:41]} 26. Qf3 {[%clk 0:01:37]}  Nb8 {[%clk 0:00:37]} 27. f5 {[%clk 0:01:36]}  fxg5 {[%clk 0:00:32]} 28. hxg5 {[%clk 0:01:35]}  h4 {[%clk 0:00:29]} 29. Ne2 {[%clk 0:01:33]}  Bd7 {[%clk 0:00:23]} 30. fxg6 {[%clk 0:01:29]}  Rf8 {[%clk 0:00:21]} 31. Bxd7+ {[%clk 0:01:27]}  Qxd7 {[%clk 0:00:20]} 32. Nf4 {[%clk 0:01:27]}  Kd8 {[%clk 0:00:16]} 33. g7 {[%clk 0:01:22]}  Rg8 {[%clk 0:00:15]} 34. Qh5 {[%clk 0:01:19]}  Kc8 {[%clk 0:00:12]} 35. Qf7 {[%clk 0:01:15]}  Qe8 {[%clk 0:00:10]} 36. g6 {[%clk 0:01:15]}  Kb7 {[%clk 0:00:10]} 37. Rh1 {[%clk 0:01:14]}  Nd7 {[%clk 0:00:10]} 38. Rxh4 {[%clk 0:01:08]}  Ne5 {[%clk 0:00:10]} 39. Bxe5 {[%clk 0:01:03]}  dxe5 {[%clk 0:00:09]} 40. Ne6 {[%clk 0:01:03]}  Nxe6 {[%clk 0:00:04]} 41. dxe6 {[%clk 0:01:01]}  Qc6 {[%clk 0:00:04]} 42. Qxe7+ {[%clk 0:01:00]}  Ka6 {[%clk 0:00:00]} 43. Nb5 {[%clk 0:00:59]} 1-0


[Site "https://www.chess.com"]

[Event "Titled Tuesday Blitz May 30 Early 2023"]
[White "Liu, Xiangyi"]
[Black "salgadoLO"]
[WhiteFideId "8605718"]
[WhiteElo "2323"]
[BlackElo "2192"]
[Result "1-0"]
[Round "05"]
[TimeControl "180+2"]
[Date "2023.05.30"]
[WhiteClock "0:01:29"]
[BlackClock "0:00:02"]

1. e4 {[%clk 0:02:41]}  c5 {[%clk 0:02:55]} 2. Nf3 {[%clk 0:02:37]}  e6 {[%clk 0:02:56]} 3. g3 {[%clk 0:02:36]}  Nc6 {[%clk 0:02:55]} 4. Bg2 {[%clk 0:02:36]}  g6 {[%clk 0:02:54]} 5. O-O {[%clk 0:02:36]}  Bg7 {[%clk 0:02:55]} 6. Re1 {[%clk 0:02:36]}  d6 {[%clk 0:02:50]} 7. c3 {[%clk 0:02:36]}  Nge7 {[%clk 0:02:50]} 8. d4 {[%clk 0:02:36]}  cxd4 {[%clk 0:02:50]} 9. cxd4 {[%clk 0:02:37]}  O-O {[%clk 0:02:50]} 10. Nc3 {[%clk 0:02:37]}  e5 {[%clk 0:02:16]} 11. d5 {[%clk 0:02:34]}  Nb8 {[%clk 0:02:13]} 12. a4 {[%clk 0:02:31]}  b6 {[%clk 0:02:02]} 13. b4 {[%clk 0:02:28]}  Nd7 {[%clk 0:01:59]} 14. Ba3 {[%clk 0:02:27]}  Qc7 {[%clk 0:01:50]} 15. Nb5 {[%clk 0:02:27]}  Qb8 {[%clk 0:01:51]} 16. Rc1 {[%clk 0:02:05]}  a6 {[%clk 0:01:50]} 17. Nc3 {[%clk 0:02:06]}  Bb7 {[%clk 0:01:37]} 18. a5 {[%clk 0:02:00]}  b5 {[%clk 0:01:35]} 19. h4 {[%clk 0:01:59]}  h6 {[%clk 0:01:31]} 20. Re2 {[%clk 0:01:57]}  Qd8 {[%clk 0:01:22]} 21. Rec2 {[%clk 0:01:53]}  Rc8 {[%clk 0:01:21]} 22. Qd3 {[%clk 0:01:51]}  f5 {[%clk 0:01:21]} 23. h5 {[%clk 0:01:51]}  g5 {[%clk 0:01:11]} 24. exf5 {[%clk 0:01:50]}  Nxf5 {[%clk 0:01:10]} 25. Ne4 {[%clk 0:01:47]}  g4 {[%clk 0:00:45]} 26. Nh2 {[%clk 0:01:43]}  Rxc2 {[%clk 0:00:41]} 27. Rxc2 {[%clk 0:01:42]}  Nd4 {[%clk 0:00:41]} 28. Nxd6 {[%clk 0:01:31]}  Nxc2 {[%clk 0:00:25]} 29. Qxc2 {[%clk 0:01:30]}  Qb8 {[%clk 0:00:20]} 30. Nf5 {[%clk 0:01:30]}  Rc8 {[%clk 0:00:13]} 31. Ne7+ {[%clk 0:01:29]}  Kh8 {[%clk 0:00:12]} 32. Nxc8 {[%clk 0:01:28]}  Bxc8 {[%clk 0:00:11]} 33. Nxg4 {[%clk 0:01:28]}  Nf6 {[%clk 0:00:09]} 34. Nxf6 {[%clk 0:01:28]}  Bxf6 {[%clk 0:00:08]} 35. Qg6 {[%clk 0:01:29]}  Bg7 {[%clk 0:00:08]} 36. Qe8+ {[%clk 0:01:29]}  Kh7 {[%clk 0:00:02]} 37. Be4+ {[%clk 0:01:29]} 1-0


[Site "https://www.chess.com"]

[Event "Titled Tuesday Blitz May 30 Early 2023"]
[White "Kriti Mayur Patel"]
[Black "Sharan, Rao"]
[WhiteFideId "35061780"]
[BlackFideId "5073464"]
[WhiteElo "1306"]
[BlackElo "2231"]
[Result "0-1"]
[Round "05"]
[TimeControl "180+2"]
[Date "2023.05.30"]
[WhiteClock "0:00:40"]
[BlackClock "0:00:08"]

1. e4 {[%clk 0:03:00]}  e6 {[%clk 0:02:55]} 2. d4 {[%clk 0:02:58]}  d5 {[%clk 0:02:54]} 3. Nc3 {[%clk 0:02:59]}  Nf6 {[%clk 0:02:53]} 4. e5 {[%clk 0:02:59]}  Ng8 {[%clk 0:02:53]} 5. f4 {[%clk 0:02:59]}  c5 {[%clk 0:02:52]} 6. Nf3 {[%clk 0:02:59]}  Nc6 {[%clk 0:02:51]} 7. Be3 {[%clk 0:03:00]}  Nh6 {[%clk 0:02:37]} 8. dxc5 {[%clk 0:02:57]}  Nf5 {[%clk 0:02:36]} 9. Bf2 {[%clk 0:02:51]}  Qa5 {[%clk 0:02:36]} 10. Bd3 {[%clk 0:02:25]}  d4 {[%clk 0:02:03]} 11. O-O {[%clk 0:01:09]}  dxc3 {[%clk 0:02:02]} 12. bxc3 {[%clk 0:01:09]}  Bxc5 {[%clk 0:01:59]} 13. Bxf5 {[%clk 0:01:07]}  Bxf2+ {[%clk 0:01:55]} 14. Rxf2 {[%clk 0:01:06]}  exf5 {[%clk 0:01:56]} 15. Qd6 {[%clk 0:01:05]}  Qd8 {[%clk 0:01:42]} 16. Qc5 {[%clk 0:00:59]}  Qe7 {[%clk 0:01:41]} 17. Qe3 {[%clk 0:00:47]}  Be6 {[%clk 0:01:39]} 18. Ng5 {[%clk 0:00:48]}  h6 {[%clk 0:01:37]} 19. Nf3 {[%clk 0:00:47]}  O-O {[%clk 0:01:35]} 20. Nd4 {[%clk 0:00:47]}  Rfd8 {[%clk 0:01:29]} 21. Rd2 {[%clk 0:00:44]}  Na5 {[%clk 0:01:22]} 22. Qh3 {[%clk 0:00:34]}  Qc5 {[%clk 0:01:02]} 23. Kh1 {[%clk 0:00:26]}  Nc4 {[%clk 0:01:01]} 24. Rd3 {[%clk 0:00:25]}  Kh7 {[%clk 0:00:24]} 25. Rad1 {[%clk 0:00:15]}  g6 {[%clk 0:00:22]} 26. Nxe6 {[%clk 0:00:15]}  Rxd3 {[%clk 0:00:22]} 27. Qxd3 {[%clk 0:00:13]}  fxe6 {[%clk 0:00:21]} 28. Qd7+ {[%clk 0:00:13]}  Kh8 {[%clk 0:00:20]} 29. Qxe6 {[%clk 0:00:14]}  Rg8 {[%clk 0:00:19]} 30. Qf6+ {[%clk 0:00:14]}  Rg7 {[%clk 0:00:17]} 31. Rd8+ {[%clk 0:00:13]}  Kh7 {[%clk 0:00:17]} 32. Rd1 {[%clk 0:00:12]}  Qe7 {[%clk 0:00:17]} 33. h3 {[%clk 0:00:09]}  Qxf6 {[%clk 0:00:15]} 34. exf6 {[%clk 0:00:10]}  Rf7 {[%clk 0:00:16]} 35. Rd4 {[%clk 0:00:11]}  Nb6 {[%clk 0:00:15]} 36. Rd6 {[%clk 0:00:11]}  Rd7 {[%clk 0:00:14]} 37. Re6 {[%clk 0:00:11]}  Kg8 {[%clk 0:00:13]} 38. Re7 {[%clk 0:00:12]}  Rxe7 {[%clk 0:00:13]} 39. fxe7 {[%clk 0:00:13]}  Kf7 {[%clk 0:00:14]} 40. Kg1 {[%clk 0:00:13]}  Kxe7 {[%clk 0:00:13]} 41. Kf2 {[%clk 0:00:14]}  Kd6 {[%clk 0:00:13]} 42. Ke2 {[%clk 0:00:15]}  Kc5 {[%clk 0:00:14]} 43. Kd3 {[%clk 0:00:16]}  Nd5 {[%clk 0:00:15]} 44. g3 {[%clk 0:00:16]}  Nf6 {[%clk 0:00:15]} 45. Ke3 {[%clk 0:00:15]}  Ne4 {[%clk 0:00:15]} 46. Kd3 {[%clk 0:00:16]}  Nxg3 {[%clk 0:00:15]} 47. a3 {[%clk 0:00:17]}  Ne4 {[%clk 0:00:15]} 48. h4 {[%clk 0:00:18]}  h5 {[%clk 0:00:14]} 49. a4 {[%clk 0:00:17]}  a5 {[%clk 0:00:14]} 50. c4 {[%clk 0:00:16]}  Nd6 {[%clk 0:00:14]} 51. Kc3 {[%clk 0:00:15]}  Nxc4 {[%clk 0:00:14]} 52. Kb3 {[%clk 0:00:16]}  Nb6 {[%clk 0:00:15]} 53. c3 {[%clk 0:00:16]}  Nd5 {[%clk 0:00:15]} 54. Kc2 {[%clk 0:00:16]}  Nxf4 {[%clk 0:00:16]} 55. c4 {[%clk 0:00:16]}  Ng2 {[%clk 0:00:16]} 56. Kb3 {[%clk 0:00:17]}  Nxh4 {[%clk 0:00:17]} 57. Kc3 {[%clk 0:00:17]}  g5 {[%clk 0:00:18]} 58. Kd3 {[%clk 0:00:18]}  Ng6 {[%clk 0:00:18]} 59. Ke2 {[%clk 0:00:19]}  Ne5 {[%clk 0:00:19]} 60. Kf2 {[%clk 0:00:20]}  Kxc4 {[%clk 0:00:19]} 61. Kg3 {[%clk 0:00:21]}  Kb4 {[%clk 0:00:20]} 62. Kh3 {[%clk 0:00:21]}  Kxa4 {[%clk 0:00:21]} 63. Kg3 {[%clk 0:00:22]}  b5 {[%clk 0:00:22]} 64. Kh3 {[%clk 0:00:23]}  b4 {[%clk 0:00:23]} 65. Kg3 {[%clk 0:00:24]}  b3 {[%clk 0:00:23]} 66. Kh3 {[%clk 0:00:25]}  b2 {[%clk 0:00:24]} 67. Kg3 {[%clk 0:00:26]}  b1=Q {[%clk 0:00:25]} 68. Kh3 {[%clk 0:00:27]}  Qd3+ {[%clk 0:00:25]} 69. Kg2 {[%clk 0:00:27]}  Kb4 {[%clk 0:00:25]} 70. Kf2 {[%clk 0:00:28]}  a4 {[%clk 0:00:26]} 71. Kg2 {[%clk 0:00:29]}  a3 {[%clk 0:00:27]} 72. Kh2 {[%clk 0:00:29]}  a2 {[%clk 0:00:28]} 73. Kg2 {[%clk 0:00:30]}  a1=Q {[%clk 0:00:28]} 74. Kh2 {[%clk 0:00:31]}  Qb2+ {[%clk 0:00:28]} 75. Kg1 {[%clk 0:00:31]}  f4 {[%clk 0:00:25]} 76. Kh1 {[%clk 0:00:32]}  f3 {[%clk 0:00:24]} 77. Kg1 {[%clk 0:00:33]}  g4 {[%clk 0:00:22]} 78. Kh1 {[%clk 0:00:34]}  g3 {[%clk 0:00:23]} 79. Kg1 {[%clk 0:00:35]}  h4 {[%clk 0:00:22]} 80. Kh1 {[%clk 0:00:36]}  h3 {[%clk 0:00:23]} 81. Kg1 {[%clk 0:00:37]}  Ng4 {[%clk 0:00:23]} 82. Kh1 {[%clk 0:00:38]}  Kc4 {[%clk 0:00:23]} 83. Kg1 {[%clk 0:00:38]}  Kd4 {[%clk 0:00:23]} 84. Kh1 {[%clk 0:00:39]}  Ke3 {[%clk 0:00:22]} 85. Kg1 {[%clk 0:00:40]}  Qda3 {[%clk 0:00:22]} 86. Kh1 {[%clk 0:00:41]}  Nf2+ {[%clk 0:00:17]} 87. Kg1 {[%clk 0:00:42]}  h2+ {[%clk 0:00:10]} 88. Kf1 {[%clk 0:00:40]}  g2+ {[%clk 0:00:10]} 89. Ke1 {[%clk 0:00:40]}  h1=Q# {[%clk 0:00:08]} 0-1


[Site "https://www.chess.com"]

[Event "Titled Tuesday Blitz May 30 Early 2023"]
[White "Horokoskii"]
[Black "Theytookourjobs"]
[WhiteElo "2104"]
[BlackElo "2337"]
[Result "1-0"]
[Round "05"]
[TimeControl "180+2"]
[Date "2023.05.30"]
[WhiteClock "0:00:09"]
[BlackClock "0:00:00"]

1. d4 {[%clk 0:02:44]}  Nf6 {[%clk 0:02:57]} 2. c4 {[%clk 0:02:39]}  e6 {[%clk 0:02:43]} 3. Nf3 {[%clk 0:02:25]}  b6 {[%clk 0:02:41]} 4. g3 {[%clk 0:02:24]}  Bb7 {[%clk 0:02:41]} 5. Bg2 {[%clk 0:02:24]}  Be7 {[%clk 0:02:42]} 6. O-O {[%clk 0:02:25]}  O-O {[%clk 0:02:42]} 7. Nbd2 {[%clk 0:02:24]}  d6 {[%clk 0:02:43]} 8. Qc2 {[%clk 0:02:24]}  Nbd7 {[%clk 0:02:42]} 9. e4 {[%clk 0:02:21]}  e5 {[%clk 0:02:42]} 10. d5 {[%clk 0:02:21]}  a5 {[%clk 0:02:41]} 11. Nb3 {[%clk 0:02:14]}  a4 {[%clk 0:02:39]} 12. Nbd2 {[%clk 0:02:15]}  Nc5 {[%clk 0:02:40]} 13. Re1 {[%clk 0:02:07]}  Kh8 {[%clk 0:02:26]} 14. b3 {[%clk 0:02:04]}  axb3 {[%clk 0:02:00]} 15. Nxb3 {[%clk 0:02:03]}  Nxb3 {[%clk 0:01:28]} 16. Qxb3 {[%clk 0:02:03]}  Nd7 {[%clk 0:01:28]} 17. a4 {[%clk 0:01:58]}  Nc5 {[%clk 0:01:27]} 18. Qc2 {[%clk 0:01:57]}  Qd7 {[%clk 0:01:26]} 19. a5 {[%clk 0:01:54]}  bxa5 {[%clk 0:01:19]} 20. Be3 {[%clk 0:01:53]}  f6 {[%clk 0:01:07]} 21. Bxc5 {[%clk 0:01:50]}  dxc5 {[%clk 0:01:07]} 22. Reb1 {[%clk 0:01:51]}  Rfb8 {[%clk 0:01:00]} 23. Rb5 {[%clk 0:01:49]}  c6 {[%clk 0:00:52]} 24. Rbxa5 {[%clk 0:01:43]}  cxd5 {[%clk 0:00:52]} 25. Rxa8 {[%clk 0:01:34]}  Rxa8 {[%clk 0:00:52]} 26. Rxa8+ {[%clk 0:01:34]}  Bxa8 {[%clk 0:00:52]} 27. cxd5 {[%clk 0:01:29]}  Bb7 {[%clk 0:00:48]} 28. Bf1 {[%clk 0:01:27]}  h6 {[%clk 0:00:39]} 29. Nh4 {[%clk 0:01:26]}  Kh7 {[%clk 0:00:27]} 30. Qe2 {[%clk 0:01:02]}  Bc8 {[%clk 0:00:20]} 31. Nf5 {[%clk 0:00:56]}  Bf8 {[%clk 0:00:19]} 32. Qc4 {[%clk 0:00:46]}  Qb7 {[%clk 0:00:15]} 33. Ne3 {[%clk 0:00:45]}  Qb1 {[%clk 0:00:13]} 34. Kg2 {[%clk 0:00:42]}  Bd6 {[%clk 0:00:13]} 35. Bd3 {[%clk 0:00:42]}  Qa1 {[%clk 0:00:11]} 36. Qb3 {[%clk 0:00:32]}  Qd4 {[%clk 0:00:11]} 37. Nc4 {[%clk 0:00:32]}  Ba6 {[%clk 0:00:10]} 38. Nxd6 {[%clk 0:00:20]}  Bxd3 {[%clk 0:00:10]} 39. f3 {[%clk 0:00:16]}  c4 {[%clk 0:00:08]} 40. Qd1 {[%clk 0:00:11]}  Qe3 {[%clk 0:00:04]} 41. Nf5 {[%clk 0:00:10]}  Qg5 {[%clk 0:00:00]} 42. h4 {[%clk 0:00:09]} 1-0


[Site "https://www.chess.com"]

[Event "Titled Tuesday Blitz May 30 Early 2023"]
[White "Mirzanurov, Bulat"]
[Black "Steenbekkers, Franck"]
[WhiteFideId "4184521"]
[BlackFideId "1004220"]
[WhiteElo "2005"]
[BlackElo "2102"]
[Result "0-1"]
[Round "05"]
[TimeControl "180+2"]
[Date "2023.05.30"]
[WhiteClock "0:00:12"]
[BlackClock "0:01:17"]

1. e4 {[%clk 0:03:00]}  c5 {[%clk 0:02:54]} 2. Nf3 {[%clk 0:02:59]}  Nc6 {[%clk 0:02:53]} 3. Bb5 {[%clk 0:02:56]}  Nf6 {[%clk 0:02:52]} 4. Bxc6 {[%clk 0:02:43]}  bxc6 {[%clk 0:02:49]} 5. d3 {[%clk 0:02:42]}  d6 {[%clk 0:02:48]} 6. O-O {[%clk 0:02:41]}  g6 {[%clk 0:02:48]} 7. b3 {[%clk 0:02:33]}  Bg7 {[%clk 0:02:47]} 8. Bb2 {[%clk 0:02:33]}  O-O {[%clk 0:02:46]} 9. Nbd2 {[%clk 0:02:33]}  e5 {[%clk 0:02:41]} 10. Nc4 {[%clk 0:02:26]}  Be6 {[%clk 0:02:39]} 11. Re1 {[%clk 0:02:24]}  h6 {[%clk 0:02:37]} 12. Qd2 {[%clk 0:02:17]}  Nh5 {[%clk 0:02:36]} 13. Ne3 {[%clk 0:01:37]}  Qd7 {[%clk 0:02:31]} 14. Nd1 {[%clk 0:01:35]}  Nf4 {[%clk 0:02:29]} 15. Nc3 {[%clk 0:01:34]}  f5 {[%clk 0:02:27]} 16. Ne2 {[%clk 0:01:31]}  fxe4 {[%clk 0:02:05]} 17. dxe4 {[%clk 0:01:29]}  Nxg2 {[%clk 0:01:59]} 18. Nxe5 {[%clk 0:01:16]}  Bxe5 {[%clk 0:01:43]} 19. Bxe5 {[%clk 0:01:12]}  Bh3 {[%clk 0:01:41]} 20. Qxd6 {[%clk 0:01:09]}  Qg4 {[%clk 0:01:39]} 21. Ng3 {[%clk 0:01:07]}  Nh4 {[%clk 0:01:30]} 22. Re3 {[%clk 0:00:39]}  Rad8 {[%clk 0:01:21]} 23. Qxc6 {[%clk 0:00:19]}  Rd1+ {[%clk 0:01:18]} 24. Rxd1 {[%clk 0:00:14]}  Qxd1+ {[%clk 0:01:17]} 25. Re1 {[%clk 0:00:12]}  Qxe1+ {[%clk 0:01:17]} 26. Nf1 {[%clk 0:00:12]}  Qxf1# {[%clk 0:01:17]} 0-1


[Site "https://www.chess.com"]

[Event "Titled Tuesday Blitz May 30 Early 2023"]
[White "Winkels, Marcel"]
[Black "Clawitter, Craig"]
[WhiteFideId "1003887"]
[BlackFideId "2023105"]
[WhiteElo "1900"]
[BlackElo "2203"]
[Result "0-1"]
[Round "05"]
[TimeControl "180+2"]
[Date "2023.05.30"]
[WhiteClock "0:01:29"]
[BlackClock "0:01:01"]

1. e4 {[%clk 0:03:00]}  e6 {[%clk 0:02:57]} 2. d3 {[%clk 0:03:00]}  d5 {[%clk 0:02:56]} 3. Nd2 {[%clk 0:03:00]}  Nf6 {[%clk 0:02:56]} 4. Ngf3 {[%clk 0:03:00]}  Bc5 {[%clk 0:02:56]} 5. Be2 {[%clk 0:02:56]}  Nc6 {[%clk 0:02:48]} 6. e5 {[%clk 0:02:55]}  Nd7 {[%clk 0:02:48]} 7. d4 {[%clk 0:02:55]}  Nxd4 {[%clk 0:02:46]} 8. O-O {[%clk 0:02:49]}  Nxe2+ {[%clk 0:02:36]} 9. Qxe2 {[%clk 0:02:49]}  O-O {[%clk 0:02:37]} 10. Re1 {[%clk 0:02:47]}  b6 {[%clk 0:02:23]} 11. Nf1 {[%clk 0:02:47]}  a5 {[%clk 0:02:22]} 12. Ng3 {[%clk 0:02:46]}  Ba6 {[%clk 0:02:22]} 13. Qd1 {[%clk 0:02:44]}  f6 {[%clk 0:02:11]} 14. exf6 {[%clk 0:02:42]}  Qxf6 {[%clk 0:02:12]} 15. c3 {[%clk 0:02:39]}  Rae8 {[%clk 0:02:03]} 16. Bg5 {[%clk 0:02:35]}  Bxf2+ {[%clk 0:01:58]} 17. Kxf2 {[%clk 0:02:30]}  Qxg5 {[%clk 0:01:57]} 18. Kg1 {[%clk 0:02:30]}  Qg6 {[%clk 0:01:50]} 19. Nd4 {[%clk 0:02:28]}  c5 {[%clk 0:01:38]} 20. Nxe6 {[%clk 0:02:17]}  Rxe6 {[%clk 0:01:38]} 21. Qxd5 {[%clk 0:02:16]}  Re8 {[%clk 0:01:11]} 22. Nf5 {[%clk 0:01:51]}  Qxf5 {[%clk 0:01:00]} 23. Qxf5 {[%clk 0:01:49]}  Rxe1+ {[%clk 0:01:00]} 24. Rxe1 {[%clk 0:01:49]}  Rxe1+ {[%clk 0:01:00]} 25. Kf2 {[%clk 0:01:29]}  Rf1+ {[%clk 0:01:01]} 0-1


[Site "https://www.chess.com"]

[Event "Titled Tuesday Blitz May 30 Early 2023"]
[White "Castillo Pena, Patricia Evarista"]
[Black "Guevara Sanchez, Erick Marvin"]
[WhiteFideId "6412106"]
[BlackFideId "6700136"]
[WhiteElo "1919"]
[BlackElo "2040"]
[Result "0-1"]
[Round "05"]
[TimeControl "180+2"]
[Date "2023.05.30"]
[WhiteClock "0:01:04"]
[BlackClock "0:00:18"]

1. d4 {[%clk 0:02:59]}  e6 {[%clk 0:02:57]} 2. Nf3 {[%clk 0:02:59]}  c5 {[%clk 0:02:57]} 3. e3 {[%clk 0:02:59]}  cxd4 {[%clk 0:02:55]} 4. exd4 {[%clk 0:02:59]}  Nc6 {[%clk 0:02:54]} 5. Bd3 {[%clk 0:02:57]}  Nf6 {[%clk 0:02:54]} 6. O-O {[%clk 0:02:57]}  h6 {[%clk 0:02:49]} 7. b3 {[%clk 0:02:57]}  Bd6 {[%clk 0:02:39]} 8. Bb2 {[%clk 0:02:55]}  O-O {[%clk 0:02:31]} 9. Nbd2 {[%clk 0:02:54]}  Bc7 {[%clk 0:02:30]} 10. a3 {[%clk 0:02:52]}  b6 {[%clk 0:02:29]} 11. c4 {[%clk 0:02:52]}  Bb7 {[%clk 0:02:29]} 12. Rc1 {[%clk 0:02:51]}  d5 {[%clk 0:02:23]} 13. Ne5 {[%clk 0:02:50]}  Nxe5 {[%clk 0:02:21]} 14. dxe5 {[%clk 0:02:50]}  Nd7 {[%clk 0:02:20]} 15. Nf3 {[%clk 0:02:49]}  Nc5 {[%clk 0:02:12]} 16. Bb1 {[%clk 0:02:46]}  dxc4 {[%clk 0:02:12]} 17. bxc4 {[%clk 0:02:45]}  Qxd1 {[%clk 0:02:11]} 18. Rfxd1 {[%clk 0:02:44]}  Rfd8 {[%clk 0:02:06]} 19. Nd4 {[%clk 0:02:36]}  a6 {[%clk 0:01:54]} 20. Ne2 {[%clk 0:02:28]}  Rxd1+ {[%clk 0:01:34]} 21. Rxd1 {[%clk 0:02:28]}  Kf8 {[%clk 0:01:32]} 22. Kf1 {[%clk 0:02:28]}  Ke7 {[%clk 0:01:31]} 23. f4 {[%clk 0:02:27]}  f6 {[%clk 0:01:08]} 24. exf6+ {[%clk 0:02:25]}  gxf6 {[%clk 0:01:08]} 25. Bd4 {[%clk 0:02:06]}  Rg8 {[%clk 0:00:59]} 26. g3 {[%clk 0:02:03]}  h5 {[%clk 0:00:58]} 27. Bxc5+ {[%clk 0:02:00]}  bxc5 {[%clk 0:00:58]} 28. Kf2 {[%clk 0:01:59]}  h4 {[%clk 0:00:58]} 29. Nc3 {[%clk 0:01:54]}  hxg3+ {[%clk 0:00:57]} 30. hxg3 {[%clk 0:01:54]}  Rh8 {[%clk 0:00:57]} 31. Be4 {[%clk 0:01:48]}  Bc8 {[%clk 0:00:34]} 32. Kg2 {[%clk 0:01:42]}  f5 {[%clk 0:00:31]} 33. Bc6 {[%clk 0:01:39]}  Rg8 {[%clk 0:00:28]} 34. Kf3 {[%clk 0:01:37]}  Rg7 {[%clk 0:00:26]} 35. Rh1 {[%clk 0:01:36]}  Bd7 {[%clk 0:00:22]} 36. Bxd7 {[%clk 0:01:35]}  Kxd7 {[%clk 0:00:22]} 37. Rd1+ {[%clk 0:01:34]}  Kc6 {[%clk 0:00:21]} 38. Rb1 {[%clk 0:01:33]}  Ba5 {[%clk 0:00:19]} 39. Na4 {[%clk 0:01:32]}  Rd7 {[%clk 0:00:18]} 40. Rb2 {[%clk 0:01:19]}  Rd3+ {[%clk 0:00:17]} 41. Kf2 {[%clk 0:01:04]}  Rxa3 {[%clk 0:00:18]} 0-1


[Site "https://www.chess.com"]